[Event "2026 European Womens Championship"]
[Site "Batumi, GE"]
[Date "2026.05.26"]
[Round "2"]
[White "Hnatyshyn, Anastasiia"]
[Black "Brunello, Marina"]
[Result "1-0"]
[Board "19"]
[TimeControl "5400+30"]
[WhiteFideId "14198339"]
[BlackFideId "822590"]
[WhiteElo "2207"]
[BlackElo "2346"]
[WhiteTitle "WFM"]
[BlackTitle "IM"]
[WhiteClock "0:04:29"]
[BlackClock "0:21:22"]
[Variant "Standard"]

1. e4 {[%clk 1:30:57]}  c5 {[%clk 1:30:54]} 2. Nf3 {[%clk 1:31:23]}  d6 {[%clk 1:31:21]} 3. d4 {[%clk 1:31:47]}  cxd4 {[%clk 1:31:47]}
4. Nxd4 {[%clk 1:32:14]}  Nf6 {[%clk 1:32:11]} 5. Bd3 {[%clk 1:32:40]}  Nc6 {[%clk 1:26:56]} 6. Nxc6 {[%clk 1:32:46]}  bxc6 {[%clk 1:27:21]}
7. O-O {[%clk 1:33:10]}  g6 {[%clk 1:26:57]} 8. b3 {[%clk 1:33:07]}  Bg7 {[%clk 1:26:44]} 9. Bb2 {[%clk 1:33:29]}  O-O {[%clk 1:27:04]}
10. Nc3 {[%clk 1:32:42]}  d5 {[%clk 1:08:20]} 11. Re1 {[%clk 1:27:28]}  Re8 {[%clk 0:59:27]} 12. e5 {[%clk 1:14:31]}  Ng4 {[%clk 0:58:19]}
13. Na4 {[%clk 1:12:49]}  h5 {[%clk 0:53:30]} 14. Qd2 {[%clk 0:57:12]}  Qc7 {[%clk 0:49:38]} 15. f4 {[%clk 0:50:07]}  Nh6 {[%clk 0:47:50]}
16. Nc5 {[%clk 0:42:11]}  Bf5 {[%clk 0:48:06]} 17. Bf1 {[%clk 0:38:21]}  Rad8 {[%clk 0:45:08]} 18. Bd4 {[%clk 0:38:18]}  Bc8 {[%clk 0:45:16]}
19. c3 {[%clk 0:34:51]}  Nf5 {[%clk 0:44:56]} 20. Bd3 {[%clk 0:34:52]}  Nh6 {[%clk 0:42:52]} 21. b4 {[%clk 0:32:06]}  Bf5 {[%clk 0:42:20]}
22. Bf1 {[%clk 0:31:58]}  Ng4 {[%clk 0:39:02]} 23. a4 {[%clk 0:30:04]}  Rf8 {[%clk 0:37:06]} 24. h3 {[%clk 0:25:13]}  Nh6 {[%clk 0:37:29]}
25. a5 {[%clk 0:23:13]}  Kh7 {[%clk 0:36:48]} 26. a6 {[%clk 0:21:31]}  Ra8 {[%clk 0:34:30]} 27. Rac1 {[%clk 0:19:23]}  Ng8 {[%clk 0:30:51]}
28. c4 {[%clk 0:17:13]}  dxc4 {[%clk 0:22:33]} 29. Bxc4 {[%clk 0:17:33]}  Nh6 {[%clk 0:22:41]} 30. Qf2 {[%clk 0:16:09]}  Bc8 {[%clk 0:22:37]}
31. Ne4 {[%clk 0:15:52]}  Nf5 {[%clk 0:18:27]} 32. Bc5 {[%clk 0:15:58]}  Kg8 {[%clk 0:18:07]} 33. Red1 {[%clk 0:13:04]}  h4 {[%clk 0:17:33]}
34. Ng5 {[%clk 0:10:41]}  Bh6 {[%clk 0:17:00]} 35. b5 {[%clk 0:09:29]}  Bxg5 {[%clk 0:11:42]} 36. b6 {[%clk 0:07:11]}  axb6 {[%clk 0:11:59]}
37. Bxb6 {[%clk 0:07:38]}  Qb8 {[%clk 0:12:04]} 38. a7 {[%clk 0:07:56]}  Qb7 {[%clk 0:12:21]} 39. fxg5 {[%clk 0:08:19]}  Be6 {[%clk 0:11:31]}
40. Bd3 {[%clk 0:01:18]}  Ng3 {[%clk 0:09:28]} 41. Qc5 {[%clk 0:00:32]}  Bd5 {[%clk 0:09:10]} 42. Rb1 {[%clk 0:26:06]}  Be4 {[%clk 0:33:08]}
43. Bxe4 {[%clk 0:19:24]}  Nxe4 {[%clk 0:33:18]} 44. Qe3 {[%clk 0:19:50]}  Ng3 {[%clk 0:33:18]} 45. e6 {[%clk 0:19:25]}  Nf5 {[%clk 0:33:28]}
46. Qe5 {[%clk 0:15:53]}  Qa6 {[%clk 0:29:18]} 47. exf7+ {[%clk 0:13:26]}  Kxf7 {[%clk 0:29:04]} 48. Bc5 {[%clk 0:10:49]}  Qa2 {[%clk 0:27:37]}
49. Rb7 {[%clk 0:07:59]}  Qe6 {[%clk 0:28:00]} 50. Qc3 {[%clk 0:06:52]}  Kg8 {[%clk 0:24:51]} 51. Rdb1 {[%clk 0:04:27]}  Ng3 {[%clk 0:21:27]}
52. Qb3 {[%clk 0:03:53]}  Qxb3 {[%clk 0:20:57]} 53. R7xb3 {[%clk 0:04:19]}  Ne4 {[%clk 0:21:22]} 54. Rb8 {[%clk 0:04:29]} 1-0

[Event "2026 European Womens Championship"]
[Site "Batumi, GE"]
[Date "2026.05.26"]
[Round "2"]
[White "Aydin, Gulenay"]
[Black "Khukhashvili, Sopiko"]
[Result "1-0"]
[Board "20"]
[TimeControl "5400+30"]
[WhiteFideId "34557431"]
[BlackFideId "13602055"]
[WhiteElo "2204"]
[BlackElo "2329"]
[WhiteTitle "WIM"]
[BlackTitle "IM"]
[WhiteClock "0:01:20"]
[BlackClock "0:42:29"]
[Variant "Standard"]

1. e4 {[%clk 1:30:29]}  c5 {[%clk 1:30:49]} 2. Nc3 {[%clk 1:30:41]}  e6 {[%clk 1:28:18]} 3. Nge2 {[%clk 1:30:06]}  a6 {[%clk 1:28:33]}
4. g3 {[%clk 1:30:00]}  b5 {[%clk 1:28:39]} 5. Bg2 {[%clk 1:29:59]}  Bb7 {[%clk 1:29:00]} 6. O-O {[%clk 1:29:51]}  b4 {[%clk 1:26:21]}
7. Na4 {[%clk 1:17:50]}  Nf6 {[%clk 1:25:04]} 8. d4 {[%clk 0:54:49]}  Bxe4 {[%clk 1:17:34]} 9. Nxc5 {[%clk 0:47:12]}  Bxg2 {[%clk 1:17:06]}
10. Kxg2 {[%clk 0:47:40]}  Qc7 {[%clk 1:16:34]} 11. Bf4 {[%clk 0:38:22]}  d6 {[%clk 1:16:09]} 12. Nd3 {[%clk 0:37:48]}  Nbd7 {[%clk 1:16:06]}
13. a3 {[%clk 0:37:30]}  e5 {[%clk 1:11:51]} 14. Bd2 {[%clk 0:32:43]}  bxa3 {[%clk 1:10:22]} 15. Rxa3 {[%clk 0:32:37]}  Be7 {[%clk 1:10:32]}
16. Kg1 {[%clk 0:27:58]}  O-O {[%clk 1:08:19]} 17. Rc3 {[%clk 0:25:32]}  Qb7 {[%clk 1:08:00]} 18. Rb3 {[%clk 0:25:50]}  Qd5 {[%clk 1:06:41]}
19. Nb4 {[%clk 0:21:29]}  Qb7 {[%clk 1:04:26]} 20. Nd3 {[%clk 0:20:03]}  Qe4 {[%clk 1:04:03]} 21. Re1 {[%clk 0:19:25]}  Rfe8 {[%clk 1:03:06]}
22. dxe5 {[%clk 0:08:48]}  dxe5 {[%clk 0:58:20]} 23. Nc3 {[%clk 0:09:14]}  Qf5 {[%clk 0:58:15]} 24. Qe2 {[%clk 0:08:25]}  h5 {[%clk 0:57:35]}
25. Ne4 {[%clk 0:07:16]}  h4 {[%clk 0:55:19]} 26. gxh4 {[%clk 0:06:57]}  Rac8 {[%clk 0:55:03]} 27. Bg5 {[%clk 0:04:59]}  Rc4 {[%clk 0:53:21]}
28. f3 {[%clk 0:05:28]}  Nxe4 {[%clk 0:51:47]} 29. fxe4 {[%clk 0:05:55]}  Qg6 {[%clk 0:51:33]} 30. Kh1 {[%clk 0:03:57]}  Bxg5 {[%clk 0:51:51]}
31. hxg5 {[%clk 0:04:23]}  Qxg5 {[%clk 0:51:45]} 32. Rg1 {[%clk 0:04:18]}  Qh4 {[%clk 0:51:26]} 33. Nf2 {[%clk 0:04:31]}  Rc6 {[%clk 0:48:04]}
34. Rh3 {[%clk 0:04:19]}  Qf4 {[%clk 0:47:59]} 35. Nd3 {[%clk 0:01:20]}  Qf6 {[%clk 0:47:53]} 36. Qg4 {[%clk 0:00:59]}  Nf8 {[%clk 0:46:52]}
37. Nb4 {[%clk 0:00:41]}  Rd6 {[%clk 0:41:36]} 38. Nd5 {[%clk 0:00:55]}  Rxd5 {[%clk 0:41:09]} 39. exd5 {[%clk 0:01:23]}  e4 {[%clk 0:39:39]}
40. c3 {[%clk 0:00:35]}  Ng6 {[%clk 0:38:04]} 41. Re3 {[%clk 0:19:41]}  Qe5 {[%clk 1:03:08]} 42. Qg5 {[%clk 0:17:10]}  Qb8 {[%clk 1:03:13]}
43. Qg2 {[%clk 0:15:18]}  Qf4 {[%clk 1:00:50]} 44. Qg3 {[%clk 0:13:25]}  Qf5 {[%clk 0:59:47]} 45. c4 {[%clk 0:13:41]}  Qf6 {[%clk 0:59:40]}
46. Qg4 {[%clk 0:11:07]}  Qd4 {[%clk 0:58:31]} 47. Rc3 {[%clk 0:09:17]}  Qd2 {[%clk 0:57:00]} 48. Qg2 {[%clk 0:06:51]}  Qd4 {[%clk 0:57:19]}
49. Qg4 {[%clk 0:04:15]}  Qd2 {[%clk 0:57:28]} 50. h4 {[%clk 0:01:45]}  Rb8 {[%clk 0:48:48]} 51. h5 {[%clk 0:01:27]}  Rxb2 {[%clk 0:48:43]}
52. Rh3 {[%clk 0:01:55]}  Qf2 {[%clk 0:42:11]} 53. hxg6 {[%clk 0:02:12]}  f5 {[%clk 0:42:38]} 54. Qg5 {[%clk 0:01:04]}  Rb8 {[%clk 0:42:29]}
55. Qe7 {[%clk 0:01:20]} 1-0

[Event "2026 European Womens Championship"]
[Site "Batumi, GE"]
[Date "2026.05.26"]
[Round "2"]
[White "Nomin-Erdene, Davaademberel"]
[Black "Antova, Gabriela"]
[Result "0-1"]
[Board "21"]
[TimeControl "5400+30"]
[WhiteFideId "4900782"]
[BlackFideId "2915235"]
[WhiteElo "2328"]
[BlackElo "2203"]
[WhiteTitle "IM"]
[BlackTitle "WGM"]
[WhiteClock "0:00:51"]
[BlackClock "0:01:46"]
[Variant "Standard"]

1. e4 {[%clk 1:30:56]}  e5 {[%clk 1:30:05]} 2. Nf3 {[%clk 1:30:33]}  Nc6 {[%clk 1:30:19]} 3. Bc4 {[%clk 1:30:21]}  Nf6 {[%clk 1:30:25]}
4. d3 {[%clk 1:30:42]}  h6 {[%clk 1:30:42]} 5. c3 {[%clk 1:31:05]}  d6 {[%clk 1:30:52]} 6. a4 {[%clk 1:31:27]}  Be7 {[%clk 1:30:44]}
7. a5 {[%clk 1:31:43]}  a6 {[%clk 1:29:45]} 8. O-O {[%clk 1:31:51]}  O-O {[%clk 1:29:51]} 9. Re1 {[%clk 1:32:04]}  Be6 {[%clk 1:29:06]}
10. Nbd2 {[%clk 1:30:28]}  Qd7 {[%clk 1:22:19]} 11. Qb3 {[%clk 1:24:43]}  Rfd8 {[%clk 1:02:29]} 12. Nf1 {[%clk 1:13:12]}  Bxc4 {[%clk 0:58:09]}
13. dxc4 {[%clk 1:10:02]}  Bf8 {[%clk 0:46:41]} 14. Qc2 {[%clk 1:03:03]}  b6 {[%clk 0:39:08]} 15. axb6 {[%clk 0:56:17]}  cxb6 {[%clk 0:39:32]}
16. Ne3 {[%clk 0:56:05]}  b5 {[%clk 0:39:10]} 17. Bd2 {[%clk 0:41:35]}  Qb7 {[%clk 0:36:52]} 18. Nd5 {[%clk 0:29:40]}  Nxd5 {[%clk 0:35:31]}
19. cxd5 {[%clk 0:30:06]}  Nb8 {[%clk 0:27:12]} 20. Ra5 {[%clk 0:28:47]}  Nd7 {[%clk 0:23:34]} 21. Be3 {[%clk 0:24:00]}  Be7 {[%clk 0:20:49]}
22. Rea1 {[%clk 0:18:19]}  Rdc8 {[%clk 0:19:19]} 23. Nd2 {[%clk 0:13:08]}  Bd8 {[%clk 0:18:08]} 24. R5a2 {[%clk 0:13:31]}  a5 {[%clk 0:12:16]}
25. Qd3 {[%clk 0:10:03]}  Qa6 {[%clk 0:04:37]} 26. Qe2 {[%clk 0:08:55]}  Kh7 {[%clk 0:03:45]} 27. Qh5 {[%clk 0:08:25]}  Nf6 {[%clk 0:01:19]}
28. Qxf7 {[%clk 0:08:49]}  Bb6 {[%clk 0:01:34]} 29. Re1 {[%clk 0:03:59]}  Re8 {[%clk 0:01:41]} 30. c4 {[%clk 0:00:34]}  Bxe3 {[%clk 0:01:19]}
31. Rxe3 {[%clk 0:00:33]}  Ra7 {[%clk 0:01:39]} 32. cxb5 {[%clk 0:00:50]}  Qb6 {[%clk 0:01:55]} 33. Nc4 {[%clk 0:00:40]}  Qc5 {[%clk 0:01:44]}
34. Qxa7 {[%clk 0:00:39]}  Qxa7 {[%clk 0:02:08]} 35. b6 {[%clk 0:00:49]}  Qb8 {[%clk 0:01:36]} 36. Rxa5 {[%clk 0:00:37]}  Rc8 {[%clk 0:01:50]}
37. b3 {[%clk 0:00:39]}  Qxb6 {[%clk 0:02:09]} 38. Ra1 {[%clk 0:00:33]}  Qd4 {[%clk 0:02:14]} 39. Rae1 {[%clk 0:00:48]}  Qc5 {[%clk 0:01:24]}
40. Ra1 {[%clk 0:00:35]}  Rf8 {[%clk 0:00:59]} 41. h3 {[%clk 0:00:33]}  Nd7 {[%clk 0:19:44]} 42. Ra6 {[%clk 0:23:28]}  Qd4 {[%clk 0:14:22]}
43. Ra2 {[%clk 0:10:13]}  Rf6 {[%clk 0:07:06]} 44. Rd2 {[%clk 0:02:03]}  Qa1+ {[%clk 0:06:29]} 45. Kh2 {[%clk 0:02:32]}  Qc1 {[%clk 0:05:58]}
46. Ree2 {[%clk 0:00:33]}  Nc5 {[%clk 0:05:08]} 47. Rc2 {[%clk 0:00:33]}  Qf4+ {[%clk 0:03:41]} 48. g3 {[%clk 0:00:59]}  Qf3 {[%clk 0:03:46]}
49. Re3 {[%clk 0:00:35]}  Qd1 {[%clk 0:04:03]} 50. Rb2 {[%clk 0:00:32]}  Qf1 {[%clk 0:03:43]} 51. Ree2 {[%clk 0:00:42]}  Nxe4 {[%clk 0:01:11]}
52. Ne3 {[%clk 0:01:11]}  Qa1 {[%clk 0:01:19]} 53. Ng4 {[%clk 0:00:33]}  Rf7 {[%clk 0:01:15]} 54. Ra2 {[%clk 0:00:54]}  Qb1 {[%clk 0:01:38]}
55. Rab2 {[%clk 0:00:32]}  Qd3 {[%clk 0:01:53]} 56. b4 {[%clk 0:00:31]}  h5 {[%clk 0:01:07]} 57. Ne3 {[%clk 0:00:31]}  Rxf2+ {[%clk 0:01:24]}
58. Rxf2 {[%clk 0:00:32]}  Nxf2 {[%clk 0:01:49]} 59. Ng2 {[%clk 0:00:31]}  Ne4 {[%clk 0:01:52]} 60. b5 {[%clk 0:00:43]}  Qxg3+ {[%clk 0:01:36]}
61. Kg1 {[%clk 0:00:43]}  Qc3 {[%clk 0:01:30]} 62. Re2 {[%clk 0:00:31]}  Qc5+ {[%clk 0:01:29]} 63. Kh2 {[%clk 0:00:51]}  Nf6 {[%clk 0:01:46]} 0-1

[Event "2026 European Womens Championship"]
[Site "Batumi, GE"]
[Date "2026.05.26"]
[Round "2"]
[White "Mammadova, Gulnar"]
[Black "Rudzinska, Michalina"]
[Result "0-1"]
[Board "22"]
[TimeControl "5400+30"]
[WhiteFideId "13403508"]
[BlackFideId "1172883"]
[WhiteElo "2325"]
[BlackElo "2200"]
[WhiteTitle "IM"]
[BlackTitle "WGM"]
[WhiteClock "0:11:53"]
[BlackClock "0:08:30"]
[Variant "Standard"]

1. e4 {[%clk 1:30:57]}  c5 {[%clk 1:30:52]} 2. Nc3 {[%clk 1:31:04]}  e6 {[%clk 1:30:49]} 3. Nf3 {[%clk 1:31:16]}  Nc6 {[%clk 1:29:53]}
4. d4 {[%clk 1:31:26]}  cxd4 {[%clk 1:30:18]} 5. Nxd4 {[%clk 1:31:50]}  a6 {[%clk 1:30:21]} 6. Nxc6 {[%clk 1:31:55]}  bxc6 {[%clk 1:30:43]}
7. Qd3 {[%clk 1:32:15]}  d5 {[%clk 1:29:41]} 8. Qg3 {[%clk 1:32:17]}  d4 {[%clk 1:24:05]} 9. Nb1 {[%clk 1:31:57]}  Nf6 {[%clk 1:21:24]}
10. Nd2 {[%clk 1:30:33]}  h5 {[%clk 1:17:28]} 11. e5 {[%clk 1:26:33]}  h4 {[%clk 1:11:51]} 12. Qf3 {[%clk 1:17:08]}  Nd5 {[%clk 1:11:14]}
13. Bd3 {[%clk 1:15:08]}  Qc7 {[%clk 1:07:05]} 14. Nc4 {[%clk 1:14:17]}  a5 {[%clk 0:53:36]} 15. O-O {[%clk 1:07:46]}  Ba6 {[%clk 0:52:04]}
16. Re1 {[%clk 1:05:54]}  Nb4 {[%clk 0:49:44]} 17. b3 {[%clk 0:53:31]}  Bxc4 {[%clk 0:45:56]} 18. bxc4 {[%clk 0:53:45]}  Nxd3 {[%clk 0:44:36]}
19. Qxd3 {[%clk 0:49:37]}  Bb4 {[%clk 0:40:07]} 20. Bd2 {[%clk 0:48:46]}  c5 {[%clk 0:36:36]} 21. c3 {[%clk 0:38:25]}  dxc3 {[%clk 0:31:22]}
22. Bg5 {[%clk 0:35:47]}  a4 {[%clk 0:08:45]} 23. a3 {[%clk 0:34:46]}  Ba5 {[%clk 0:09:06]} 24. Qc2 {[%clk 0:29:53]}  Qc6 {[%clk 0:08:44]}
25. Rad1 {[%clk 0:29:05]}  h3 {[%clk 0:08:07]} 26. f3 {[%clk 0:23:36]}  Bc7 {[%clk 0:07:39]} 27. Re2 {[%clk 0:22:31]}  Rb8 {[%clk 0:03:09]}
28. Qxc3 {[%clk 0:22:15]}  O-O {[%clk 0:02:07]} 29. Re4 {[%clk 0:16:27]}  Bd8 {[%clk 0:02:09]} 30. Bf6 {[%clk 0:14:56]}  Bxf6 {[%clk 0:02:20]}
31. exf6 {[%clk 0:15:22]}  Rfd8 {[%clk 0:02:06]} 32. Rde1 {[%clk 0:14:51]}  Qd6 {[%clk 0:01:27]} 33. gxh3 {[%clk 0:10:46]}  Rb3 {[%clk 0:01:17]}
34. Qa1 {[%clk 0:09:09]}  Qd2 {[%clk 0:01:13]} 35. Qe5 {[%clk 0:06:45]}  Rxf3 {[%clk 0:01:32]} 36. Qxc5 {[%clk 0:05:46]}  Rxf6 {[%clk 0:01:08]}
37. Qe3 {[%clk 0:05:51]}  Qc2 {[%clk 0:01:17]} 38. Rg4 {[%clk 0:04:12]}  Rd3 {[%clk 0:01:17]} 39. Qe4 {[%clk 0:02:48]}  Qf2+ {[%clk 0:01:13]}
40. Kh1 {[%clk 0:03:17]}  Rxh3 {[%clk 0:00:40]} 41. Rg2 {[%clk 0:01:45]}  Qf3 {[%clk 0:28:25]} 42. c5 {[%clk 0:29:29]}  Qxe4 {[%clk 0:20:25]}
43. Rxe4 {[%clk 0:29:24]}  Rc3 {[%clk 0:19:21]} 44. Rd2 {[%clk 0:25:39]}  Rxc5 {[%clk 0:17:53]} 45. Rxa4 {[%clk 0:25:50]}  Rg5 {[%clk 0:17:13]}
46. h3 {[%clk 0:25:28]}  Rf3 {[%clk 0:15:57]} 47. Rh4 {[%clk 0:25:28]}  g6 {[%clk 0:14:21]} 48. a4 {[%clk 0:24:50]}  Rgg3 {[%clk 0:13:41]}
49. Kh2 {[%clk 0:25:14]}  Ra3 {[%clk 0:13:03]} 50. Rdd4 {[%clk 0:17:40]}  Rgb3 {[%clk 0:12:51]} 51. Rd2 {[%clk 0:17:59]}  Kg7 {[%clk 0:12:37]}
52. Kg2 {[%clk 0:18:22]}  Rg3+ {[%clk 0:12:14]} 53. Kh2 {[%clk 0:15:09]}  g5 {[%clk 0:11:14]} 54. Rh5 {[%clk 0:15:36]}  f6 {[%clk 0:05:04]}
55. Rd7+ {[%clk 0:11:55]}  Kg6 {[%clk 0:10:01]} 56. Rh8 {[%clk 0:12:19]}  Rgb3 {[%clk 0:10:00]} 57. Rd2 {[%clk 0:12:39]}  Rxa4 {[%clk 0:09:44]}
58. Re2 {[%clk 0:12:22]}  e5 {[%clk 0:09:35]} 59. Rf2 {[%clk 0:12:26]}  Kg7 {[%clk 0:09:07]} 60. Rc8 {[%clk 0:11:48]}  Raa3 {[%clk 0:09:05]}
61. Rfc2 {[%clk 0:11:53]}  Rxh3+ {[%clk 0:09:27]} 62. Kg2 {[%clk 0:12:10]}  g4 {[%clk 0:08:41]} 63. R8c4 {[%clk 0:11:41]}  Rag3+ {[%clk 0:08:50]}
64. Kf2 {[%clk 0:12:00]}  Kg6 {[%clk 0:09:07]} 65. Rc8 {[%clk 0:12:11]}  Kf5 {[%clk 0:09:02]} 66. R8c6 {[%clk 0:12:34]}  Kg5 {[%clk 0:08:35]}
67. Re6 {[%clk 0:11:53]}  Rc3 {[%clk 0:08:30]} 0-1

[Event "2026 European Womens Championship"]
[Site "Batumi, GE"]
[Date "2026.05.26"]
[Round "2"]
[White "Kazarian, Anna-Maja"]
[Black "Skvortsova, Alena"]
[Result "1-0"]
[Board "23"]
[TimeControl "5400+30"]
[WhiteFideId "1033689"]
[BlackFideId "24166251"]
[WhiteElo "2317"]
[BlackElo "2135"]
[WhiteTitle "FM"]
[BlackTitle "WFM"]
[WhiteClock "0:18:41"]
[BlackClock "0:29:38"]
[Variant "Standard"]

1. e4 {[%clk 1:30:57]}  c5 {[%clk 1:30:52]} 2. Nf3 {[%clk 1:31:22]}  Nc6 {[%clk 1:31:18]} 3. Nc3 {[%clk 1:31:45]}  g6 {[%clk 1:31:09]}
4. Bb5 {[%clk 1:31:28]}  Bg7 {[%clk 1:25:43]} 5. O-O {[%clk 1:29:51]}  Nf6 {[%clk 1:23:01]} 6. e5 {[%clk 1:26:55]}  Ng4 {[%clk 1:22:42]}
7. Bxc6 {[%clk 1:27:10]}  dxc6 {[%clk 1:17:27]} 8. Re1 {[%clk 1:27:26]}  Nh6 {[%clk 1:04:47]} 9. d3 {[%clk 1:14:09]}  O-O {[%clk 1:01:40]}
10. Bf4 {[%clk 1:08:46]}  b6 {[%clk 0:54:34]} 11. Ne4 {[%clk 1:03:39]}  Qd5 {[%clk 0:47:25]} 12. a4 {[%clk 0:36:07]}  Bg4 {[%clk 0:34:08]}
13. h3 {[%clk 0:30:09]}  Bxf3 {[%clk 0:34:30]} 14. Qxf3 {[%clk 0:30:36]}  Nf5 {[%clk 0:34:06]} 15. Nd2 {[%clk 0:26:02]}  Nd4 {[%clk 0:23:08]}
16. Qd1 {[%clk 0:25:34]}  b5 {[%clk 0:19:51]} 17. Ne4 {[%clk 0:20:05]}  Ne6 {[%clk 0:15:23]} 18. Nc3 {[%clk 0:20:08]}  Qd7 {[%clk 0:15:33]}
19. Bg3 {[%clk 0:19:49]}  a6 {[%clk 0:13:27]} 20. Qg4 {[%clk 0:13:50]}  Rfd8 {[%clk 0:12:10]} 21. Ne4 {[%clk 0:12:15]}  Qd4 {[%clk 0:11:02]}
22. c3 {[%clk 0:10:09]}  Qxd3 {[%clk 0:10:38]} 23. f4 {[%clk 0:10:15]}  Qc4 {[%clk 0:05:20]} 24. f5 {[%clk 0:09:24]}  gxf5 {[%clk 0:03:55]}
25. Qxf5 {[%clk 0:09:43]}  Rd3 {[%clk 0:03:26]} 26. axb5 {[%clk 0:07:44]}  cxb5 {[%clk 0:03:35]} 27. Rf1 {[%clk 0:03:49]}  Nf8 {[%clk 0:02:34]}
28. Rf4 {[%clk 0:02:54]}  Qe6 {[%clk 0:02:19]} 29. Nf6+ {[%clk 0:01:54]}  exf6 {[%clk 0:02:34]} 30. Qxd3 {[%clk 0:02:20]}  fxe5 {[%clk 0:02:51]}
31. Rf5 {[%clk 0:02:05]}  Ng6 {[%clk 0:00:40]} 32. Raf1 {[%clk 0:01:50]}  Rf8 {[%clk 0:00:59]} 33. Rh5 {[%clk 0:00:49]}  e4 {[%clk 0:00:47]}
34. Qd6 {[%clk 0:01:04]}  b4 {[%clk 0:00:40]} 35. Qxe6 {[%clk 0:01:06]}  fxe6 {[%clk 0:01:06]} 36. Rxc5 {[%clk 0:01:08]}  bxc3 {[%clk 0:01:11]}
37. bxc3 {[%clk 0:01:34]}  Rd8 {[%clk 0:00:35]} 38. Kh2 {[%clk 0:00:57]}  Ne7 {[%clk 0:00:45]} 39. Bh4 {[%clk 0:01:01]}  Bf8 {[%clk 0:00:52]}
40. Rg5+ {[%clk 0:01:14]}  Kh8 {[%clk 0:00:48]} 41. Rg4 {[%clk 0:01:04]}  h5 {[%clk 0:28:50]} 42. Rxe4 {[%clk 0:23:32]}  Kg8 {[%clk 0:29:13]}
43. Rxe6 {[%clk 0:23:43]}  Rd7 {[%clk 0:29:34]} 44. c4 {[%clk 0:22:59]}  Rc7 {[%clk 0:29:38]} 45. Bg3 {[%clk 0:18:41]} 1-0

[Event "2026 European Womens Championship"]
[Site "Batumi, GE"]
[Date "2026.05.26"]
[Round "2"]
[White "Siekanska, Maria"]
[Black "Sliwicka, Alicja"]
[Result "1/2-1/2"]
[Board "24"]
[TimeControl "5400+30"]
[WhiteFideId "21852650"]
[BlackFideId "1150677"]
[WhiteElo "2203"]
[BlackElo "2315"]
[WhiteTitle "WIM"]
[BlackTitle "WGM"]
[WhiteClock "0:06:43"]
[BlackClock "0:17:39"]
[Variant "Standard"]

1. e4 {[%clk 1:26:57]}  c5 {[%clk 1:30:58]} 2. Nf3 {[%clk 1:27:19]}  Nc6 {[%clk 1:31:22]} 3. d4 {[%clk 1:27:34]}  cxd4 {[%clk 1:31:46]}
4. Nxd4 {[%clk 1:28:01]}  e5 {[%clk 1:32:08]} 5. Nb5 {[%clk 1:28:19]}  d6 {[%clk 1:32:33]} 6. c4 {[%clk 1:28:38]}  Be7 {[%clk 1:32:51]}
7. Be2 {[%clk 1:26:00]}  a6 {[%clk 1:27:28]} 8. N5c3 {[%clk 1:24:35]}  Nf6 {[%clk 1:27:22]} 9. Be3 {[%clk 1:20:15]}  O-O {[%clk 1:24:09]}
10. O-O {[%clk 1:19:13]}  Be6 {[%clk 1:23:26]} 11. b3 {[%clk 1:17:40]}  h6 {[%clk 1:17:38]} 12. a4 {[%clk 0:59:50]}  Nd7 {[%clk 1:13:26]}
13. Na3 {[%clk 0:52:22]}  Bg5 {[%clk 0:48:50]} 14. Bxg5 {[%clk 0:38:55]}  Qxg5 {[%clk 0:48:18]} 15. Nc2 {[%clk 0:38:47]}  Rad8 {[%clk 0:40:48]}
16. Kh1 {[%clk 0:28:54]}  Nc5 {[%clk 0:39:53]} 17. b4 {[%clk 0:26:24]}  Nb3 {[%clk 0:39:10]} 18. Rb1 {[%clk 0:26:06]}  Nbd4 {[%clk 0:34:30]}
19. f4 {[%clk 0:25:08]}  Qh4 {[%clk 0:29:07]} 20. g3 {[%clk 0:24:23]}  Qe7 {[%clk 0:28:40]} 21. Nxd4 {[%clk 0:23:56]}  exd4 {[%clk 0:21:58]}
22. Nd5 {[%clk 0:23:57]}  Bxd5 {[%clk 0:20:03]} 23. exd5 {[%clk 0:24:09]}  Nb8 {[%clk 0:20:17]} 24. Bf3 {[%clk 0:21:49]}  Qf6 {[%clk 0:20:36]}
25. Qd3 {[%clk 0:20:50]}  a5 {[%clk 0:19:30]} 26. bxa5 {[%clk 0:10:52]}  Na6 {[%clk 0:19:56]} 27. Rfd1 {[%clk 0:10:52]}  Rfe8 {[%clk 0:18:51]}
28. Kg2 {[%clk 0:10:29]}  Nc5 {[%clk 0:19:01]} 29. Qxd4 {[%clk 0:10:29]}  Qxd4 {[%clk 0:18:51]} 30. Rxd4 {[%clk 0:10:54]}  Re3 {[%clk 0:17:39]}
31. Bd1 {[%clk 0:06:43]} 1/2-1/2

[Event "2026 European Womens Championship"]
[Site "Batumi, GE"]
[Date "2026.05.26"]
[Round "2"]
[White "Rodriguez Redondo, Adhara"]
[Black "Krasteva, Beloslava"]
[Result "1/2-1/2"]
[Board "25"]
[TimeControl "5400+30"]
[WhiteFideId "32065698"]
[BlackFideId "2922029"]
[WhiteElo "2200"]
[BlackElo "2285"]
[WhiteTitle "WFM"]
[BlackTitle "WGM"]
[WhiteClock "0:07:24"]
[BlackClock "0:06:19"]
[Variant "Standard"]

1. e4 {[%clk 1:30:56]}  g6 {[%clk 1:29:27]} 2. d4 {[%clk 1:30:28]}  Bg7 {[%clk 1:29:46]} 3. Nf3 {[%clk 1:25:05]}  c6 {[%clk 1:30:01]}
4. Bd3 {[%clk 1:22:51]}  d6 {[%clk 1:28:42]} 5. h3 {[%clk 1:16:39]}  Nd7 {[%clk 1:27:14]} 6. O-O {[%clk 1:15:45]}  e5 {[%clk 1:25:49]}
7. c3 {[%clk 1:12:14]}  Ngf6 {[%clk 1:21:06]} 8. Re1 {[%clk 1:10:22]}  O-O {[%clk 1:21:23]} 9. a4 {[%clk 1:02:40]}  Re8 {[%clk 1:19:21]}
10. dxe5 {[%clk 0:57:55]}  Nxe5 {[%clk 1:16:58]} 11. Nxe5 {[%clk 0:56:07]}  dxe5 {[%clk 1:16:28]} 12. Be3 {[%clk 0:50:36]}  Be6 {[%clk 1:10:28]}
13. Na3 {[%clk 0:49:11]}  Qe7 {[%clk 1:05:54]} 14. Qc2 {[%clk 0:44:47]}  Nh5 {[%clk 1:03:28]} 15. Rad1 {[%clk 0:39:46]}  Nf4 {[%clk 0:55:49]}
16. Bf1 {[%clk 0:38:22]}  Qc7 {[%clk 0:45:25]} 17. Rd2 {[%clk 0:30:01]}  Bf8 {[%clk 0:43:32]} 18. Red1 {[%clk 0:21:34]}  Bxa3 {[%clk 0:33:18]}
19. bxa3 {[%clk 0:21:59]}  b6 {[%clk 0:32:48]} 20. a5 {[%clk 0:20:00]}  c5 {[%clk 0:28:36]} 21. axb6 {[%clk 0:14:22]}  axb6 {[%clk 0:28:57]}
22. a4 {[%clk 0:09:48]}  Red8 {[%clk 0:23:11]} 23. Bb5 {[%clk 0:07:46]}  Rxd2 {[%clk 0:19:32]} 24. Qxd2 {[%clk 0:07:35]}  Bb3 {[%clk 0:18:58]}
25. Qd6 {[%clk 0:07:09]}  Qxd6 {[%clk 0:12:35]} 26. Rxd6 {[%clk 0:07:37]}  Bxa4 {[%clk 0:12:24]} 27. Rxb6 {[%clk 0:06:58]}  Bxb5 {[%clk 0:10:23]}
28. Rxb5 {[%clk 0:06:49]}  Ne2+ {[%clk 0:09:33]} 29. Kh2 {[%clk 0:06:59]}  Nxc3 {[%clk 0:05:56]} 30. Rxc5 {[%clk 0:07:24]}  Nxe4 {[%clk 0:06:19]}
31. Rxe5 {[%clk 0:07:24]} 1/2-1/2